Cogmind - Beta 15 @@@ ROGUE MODE // 2025.06.18 @ 12:09:40 Player: Peregrine Result: Escaped! Performance ------------- Evolutions (9) 4500 Regions Visited (23) 4600 Robots Destroyed (286) 1430 Value Destroyed (18908) 18908 Prototype IDs (42) 840 Alien Tech Used (0) 0 Bonus (19035) 19035 TOTAL SCORE: 49313 Bonus ------- High Alert Combat Kills 6205 Follower Combat Kills 4509 Entered Garrisons 1200 Used RIF Installer 2500 Entered DSFs 1000 Registered with UFD 300 Met Optimus in HQ 500 Win 3000 Friendly Fire -179 Cogmind --------- Core Integrity 1299/1600 Matter 137/300 Energy 264/280 System Corruption 14% Temperature Cool (14) Movement Walking (125) Location To Epsilon Eridani Parts ------- > --- POWER (3) -------- Light Quantum Reactor Light Quantum Reactor > --- PROPULSION (8) --- Myomer Leg Myomer Leg Biometal Leg Centrium Leg Heavy Shield Leg Heavy Shield Leg > --- UTILITY (12) ----- Advanced Heat Sink Advanced Cooling System Advanced Coolant Injector High-capacity Storage Unit Advanced Targeting Computer Experimental Core Analyzer Improved Armor Integrity Analyzer Advanced Weapon Cycler Advanced Phase Shifter Relay Coupler [Grunt] (20) Relay Coupler [Duelist] (24) Relay Coupler [Sentry] (7) > --- WEAPON (2) ------- Compact Mass Driver Improved Plasma Cutter > --- INVENTORY (20) --- Light Quantum Reactor Reinforced Quantum Reactor Advanced Power Amplifier Matter Compressor (250) Advanced Targeting Computer Energy Filter Advanced Transmission Jammer Graphene Brace Long-range Tractor Beam Compact HERF Cannon Enhanced Nova Cannon Enhanced Nova Cannon Helical Railgun Helical Railgun Helical Railgun Multirail Enhanced Hardcell Cannon Enhanced Hardcell Cannon Advanced Remote Datajack Peak State ------------ > --- POWER ------------ Quantum Reactor Light Quantum Reactor Reinforced Quantum Reactor > --- PROPULSION ------- Myomer Leg Myomer Leg Myomer Leg Myomer Leg Myomer Leg Biometal Leg Biometal Leg Biometal Leg > --- UTILITY ---------- Advanced Heat Sink Advanced Cooling System Advanced Coolant Injector High-capacity Storage Unit Advanced Targeting Computer Advanced Target Analyzer Experimental Core Analyzer Improved Armor Integrity Analyzer Advanced Weapon Cycler Graphene Brace Relay Coupler [Grunt] Long-range Tractor Beam > --- WEAPON ----------- Enhanced Nova Cannon Multirail > --- INVENTORY -------- Light Quantum Reactor Light Quantum Reactor Light Quantum Reactor Biometal Leg Advanced Power Amplifier Matter Compressor Quantum Capacitor Advanced Transmission Jammer Relay Coupler [Duelist] Quantum Rifle Compact HERF Cannon Enhanced Nova Cannon Helical Railgun Helical Railgun Helical Railgun Enhanced Hardcell Cannon Enhanced Hardcell Cannon Improved Remote Datajack Improved Plasma Cutter [Rating: 193] Favorites ----------- Power Neutrino Core Engine Heavy Ion Engine Power Core Neutrino Core Reactor Light Quantum Reactor Propulsion Light Treads Treads Light Treads Leg Biometal Leg Wheel Armored Huge Wheel Hover Unit Antigrav Array Flight Unit Field Propulsion Array Utility Hacking Suite Device Advanced Cooling System Storage High-capacity Storage Unit Processor Advanced Targeting Computer Hackware Hacking Suite Protection Improved Medium Armor Plating Weapon Advanced Beam Rifle Energy Gun Advanced Beam Rifle Energy Cannon Enhanced Nova Cannon Ballistic Gun Helical Railgun Ballistic Cannon Hypervelocity Gauss Cannon Launcher Grenade Launcher Special Weapon Improved Remote Datajack Impact Weapon Heavy Mace Special Melee Weapon Improved Datajack Build | -11 -10 -9 -8 -8 -8 -8 -6 -6 -5 -5 -5 -5 -4 -4 -4 -4 -3 -3 -2 -2 -1 -1 -1 ------- Run | Yrd Mat Mat Mat Sto Rec Scr Fac DSF Fac Gar Fac Gar Fac Gar Fac Gar Res DSF Res Gar Acc Gar Acc Slots Evolved 18 | . . 2 2 . . . 4 . 2 . . . 2 . . . 2 . 2 . 2 . . Power 2 | . . . . . . . 1 . . . . . . . . . . . . . 1 . . Propulsion 6 | . . . 1 . . . 1 . 2 . . . 1 . . . 1 . . . . . . Utility 10 | . . 2 1 . . . 2 . . . . . 1 . . . 1 . 2 . 1 . . Weapon . | . . . . . . . . . . . . . . . . . . . . . . . . Parts Attached 401 | . 6 30 24 15 2 3 3 6 4 35 2 47 11 27 9 51 2 16 1 59 4 24 20 Power 51 | . 1 4 2 1 . . 1 . . 6 . 6 2 3 1 7 1 1 1 5 1 7 1 Engine 11 | . . 4 1 1 . . 1 . . 2 . . . . . 1 . . . 1 . . . Core 14 | . 1 . 1 . . . . . . 4 . 2 1 2 . 3 . . . . . . . Reactor 26 | . . . . . . . . . . . . 4 1 1 1 3 1 1 1 4 1 7 1 Propulsion 125 | . 2 8 9 5 1 1 . 3 3 7 1 14 2 7 2 18 . 9 . 16 . 8 9 Treads 25 | . 2 4 5 3 1 1 . . . 1 . . 1 1 . 6 . . . . . . . Leg 71 | . . 2 . . . . . . . 5 . 11 . 6 2 4 . 9 . 15 . 8 9 Wheel 14 | . . 2 4 1 . . . 3 . 1 . . . . . 3 . . . . . . . Hover 6 | . . . . . . . . . 3 . . 3 . . . . . . . . . . . Flight 9 | . . . . 1 . . . . . . 1 . 1 . . 5 . . . 1 . . . Utility 148 | . 2 9 8 2 . 2 2 2 1 13 . 18 5 16 3 16 1 6 . 26 3 7 6 Device 47 | . . . 3 1 . 2 . . . 4 . 7 2 3 2 7 1 4 . 4 2 1 4 Storage 8 | . 1 2 1 . . . . . . . . 1 . . . 1 . 1 . 1 . . . Processor 21 | . . 3 . . . . . 2 1 2 . 2 2 . 1 1 . . . 5 . 1 1 Hackware 57 | . 1 1 2 1 . . 2 . . 6 . 7 1 12 . 4 . 1 . 14 1 3 1 Protection 15 | . . 3 2 . . . . . . 1 . 1 . 1 . 3 . . . 2 . 2 . Artifact . | . . . . . . . . . . . . . . . . . . . . . . . . Weapon 77 | . 1 9 5 7 1 . . 1 . 9 1 9 2 1 3 10 . . . 12 . 2 4 Energy Gun 20 | . 1 5 1 3 . . . . . 1 . 2 . 1 . 3 . . . 3 . . . Energy Cannon 10 | . . . 2 1 . . . . . . . . 1 . 1 2 . . . 3 . . . Ballistic Gun 16 | . . 3 . . . . . 1 . 3 1 1 . . . 2 . . . 4 . 1 . Ballistic Cannon 15 | . . . . . . . . . . 4 . 4 . . . 1 . . . 2 . 1 3 Launcher 5 | . . 1 2 2 . . . . . . . . . . . . . . . . . . . Special Weapon 9 | . . . . . . . . . . 1 . 2 1 . 2 2 . . . . . . 1 Impact Weapon 1 | . . . . 1 . . . . . . . . . . . . . . . . . . . Slashing Weapon . | . . . . . . . . . . . . . . . . . . . . . . . . Piercing Weapon . | . . . . . . . . . . . . . . . . . . . . . . . . Special Melee Weapon 1 | . . . . . 1 . . . . . . . . . . . . . . . . . . Unidentified Prototypes 17 | . . 3 1 4 . . . . . . 2 . . . 1 1 . 1 . 1 . 1 2 Corrupted Parts 4 | . . 1 . . . . . . . 1 . . . 1 . . . . . 1 . . . System Corruption 13 | . . 1 . . . . . . . 1 . . . 6 . . . . . 5 . . . Parts Lost 109 | . 2 11 7 6 . . . 3 . 7 . 8 3 8 1 22 . . . 14 . 11 6 Power 17 | . 1 2 . 1 . . . 1 . 2 . 2 1 . . 4 . . . 1 . . 2 Propulsion 38 | . . 3 3 3 . . . . . 2 . 3 . 2 . 6 . . . 7 . 6 3 Utility 32 | . 1 1 2 . . . . 1 . 1 . 2 2 5 . 5 . . . 6 . 5 1 Weapon 22 | . . 5 2 2 . . . 1 . 2 . 1 . 1 1 7 . . . . . . . Highest Loss Streak 14 | . 2 4 6 4 . . . 3 . 2 . 6 2 4 1 14 . . . 6 . 4 3 To Critical Strikes . | . . . . . . . . . . . . . . . . . . . . . . . . Average Backups 16 | 6 6 9 14 15 19 18 13 12 13 16 18 18 16 15 17 14 18 17 19 17 17 17 17 Power . | 1 1 1 1 . 1 1 . . . . . . . . 1 1 2 2 1 1 . 1 2 Propulsion 2 | 4 2 1 . 2 2 . . 1 3 . . . 1 5 8 6 5 4 4 2 1 . 1 Utility 8 | . . 4 8 8 9 9 8 6 5 11 14 15 11 6 5 3 8 8 7 7 9 7 5 Weapon 3 | 1 1 2 3 4 5 6 4 3 2 3 3 2 2 2 2 2 1 1 4 5 5 6 7 Tool/Special . | . . . . . . . . . . . . . . . . . . . . . . . . Unused Backups 51 | . 4 4 2 . 1 3 . . 1 8 . 4 1 2 . 5 . 4 . 5 1 . 6 Power 5 | . . . 1 . . . . . . . . . . . . . . 3 . 1 . . . Propulsion 10 | . 4 1 . . . 1 . . . . . . . . . 2 . 1 . 1 . . . Utility 25 | . . 3 . . . 2 . . 1 3 . 4 1 2 . 2 . . . 2 1 . 4 Weapon 8 | . . . 1 . . . . . . 3 . . . . . 1 . . . 1 . . 2 Tool/Special 3 | . . . . . 1 . . . . 2 . . . . . . . . . . . . . Average Slot Usage (%) 88 | . 87 89 93 90 100 82 91 85 71 84 94 90 82 87 93 81 83 91 86 92 99 93 91 Engine 3 | . 7 8 7 6 9 9 11 10 5 2 . . . . . . . . . . . . . Core 2 | . 6 1 1 2 . . . . . 7 11 4 . 4 5 4 3 4 2 . . . . Reactor 3 | . . . . . . . . . . . . 5 9 5 5 5 4 4 5 7 12 11 9 Treads 10 | . 26 18 19 16 27 27 26 7 . . . . 2 4 5 9 . . . . . . . Leg 13 | . 1 . . . . . . . . 11 29 24 18 21 26 9 23 36 34 33 32 28 26 Wheel 1 | . . 2 2 2 . . . 8 7 6 . . . . . 1 . . . . . . . Device 8 | . . . 8 5 . . 6 2 . 6 11 11 15 13 14 22 17 20 26 6 12 15 20 Storage 6 | . 14 11 9 9 9 9 6 6 5 5 5 5 5 5 5 4 4 4 4 4 4 4 4 Processor 7 | . . 13 11 . . . . 4 14 9 5 6 2 5 5 5 4 4 4 13 20 17 13 Hackware 15 | . 2 6 10 30 36 35 26 30 19 14 17 14 12 10 9 1 4 1 . 12 11 5 10 Protection 1 | . . 5 5 . . . . . . 1 . . 3 5 5 2 4 2 . 2 . 1 . Energy Gun 4 | . 14 15 14 9 16 . . 4 5 . . . 5 1 5 3 7 5 8 1 . . . Energy Cannon 1 | . . . 2 5 . 1 6 4 2 1 . . 1 . 2 2 . . . 1 . 2 . Ballistic Gun 1 | . 14 3 . . . . . 1 2 1 1 2 . . . . . . . 3 6 4 3 Ballistic Cannon 1 | . . . . . . . . . . 5 9 4 2 5 . 2 . . . . . . 3 Peak Build Rating 193 | 6 10 20 28 33 32 42 51 62 71 81 83 136 157 157 135 141 120 161 169 179 191 193 189 Average Rating 85 | 6 7 14 25 29 31 25 49 52 60 73 76 103 142 124 126 120 116 145 168 156 187 181 173 On Entrance 90 | 6 6 8 20 28 32 31 42 51 54 71 76 78 136 157 118 135 114 118 161 169 177 191 181 Naked Turns . | . . . . . . . . . . . . . . . . . . . . . . . . Heaviest Build 154 | 13 28 38 57 56 52 59 67 67 54 97 89 111 109 109 106 119 109 114 97 112 112 154 125 Greatest Support 228 | 20 40 40 71 60 60 60 60 60 60 93 80 180 180 170 120 210 115 226 224 225 225 225 228 Greatest Overweight (x) 17 | . . 10 16 17 . 1 1 2 . 2 1 4 1 1 . 5 . . . . . 1 1 Average Overweight (x) . | . . . . 1 . . 1 . . . . . . . . . . . . . . . . Largest Inventory Capacity 20 | 8 15 15 20 20 20 20 20 20 20 20 20 20 20 20 20 20 20 20 20 20 20 20 20 Average Capacity 19 | 8 14 14 17 19 20 20 20 20 20 20 20 20 20 20 20 19 20 20 20 20 20 20 20 Most Carried 20 | 6 8 14 17 19 20 20 16 19 20 20 20 20 20 20 20 20 20 20 20 20 19 20 20 Average Carried 17 | 6 6 9 14 15 19 19 13 15 17 16 18 19 17 17 19 16 20 18 19 18 18 18 17 Final Capacity 20 | 8 15 15 15 20 20 20 20 20 20 20 20 20 20 20 20 20 20 20 20 20 20 20 20 Final Carried 20 | 6 7 13 14 19 20 17 13 19 17 17 20 19 18 20 20 20 20 20 19 20 19 20 19 Class Distribution -------------------- 33% | Scavenger-Mutant 26% | Bothacker-Mutant 17% | Commander-Mutant 11% | Hacker-Mutant 8% | Mutant Dominant Class ---------------- Mutant | -10/Materials Mutant | -9/Materials Scavenger-Mutant | -8/Materials Hacker-Mutant | -8/Storage Hacker-Mutant | -8/Recycling Commander-Mutant | -8/Scraptown Commander-Mutant | -6/Factory Hacker-Mutant | -6/DSF Hacker-Mutant | -5/Factory Bothacker-Mutant | -5/Garrison Bothacker-Mutant | -5/Factory Bothacker-Mutant | -5/Garrison Bothacker-Mutant | -4/Factory Scavenger-Mutant | -4/Garrison Scavenger-Mutant | -4/Factory Scavenger-Mutant | -4/Garrison Bothacker-Mutant | -3/Research Bothacker-Mutant | -3/DSF Bothacker-Skirmisher | -2/Research Scavenger-Mutant | -2/Garrison Scavenger-Mutant | -1/Access Scavenger-Mutant | -1/Garrison Scavenger-Mutant | -1/Access Resources | -11 -10 -9 -8 -8 -8 -8 -6 -6 -5 -5 -5 -5 -4 -4 -4 -4 -3 -3 -2 -2 -1 -1 -1 ----------- Run | Yrd Mat Mat Mat Sto Rec Scr Fac DSF Fac Gar Fac Gar Fac Gar Fac Gar Res DSF Res Gar Acc Gar Acc Matter Collected 12795 | 200 73 512 583 246 77 85 . 144 50 1623 35 1998 413 883 319 1338 . 420 . 1793 77 960 966 Remotely 1246 | . . . . . . . . . . . . . . . . . . 147 . . . 322 777 Salvage Created 16202 | . 137 1897 1248 945 274 52 . 726 148 1517 73 507 399 361 648 1911 . 254 . 2006 . 2243 856 Parts 638 | . 11 120 56 35 14 5 . 17 6 54 1 14 20 9 17 59 . . . 66 . 93 41 Haulers Intercepted 11 | . . 3 2 1 . . . . 1 . 1 . . . 2 . . . . . . . 1 Recyclers Shooed 6 | . . 1 2 1 . . . . 1 . . . . . 1 . . . . . . . . Parts Field Recycled . | . . . . . . . . . . . . . . . . . . . . . . . . Retrieved Matter . | . . . . . . . . . . . . . . . . . . . . . . . . Parts Self-Destructed . | . . . . . . . . . . . . . . . . . . . . . . . . Prevented . | . . . . . . . . . . . . . . . . . . . . . . . . Kills | -11 -10 -9 -8 -8 -8 -8 -6 -6 -5 -5 -5 -5 -4 -4 -4 -4 -3 -3 -2 -2 -1 -1 -1 ------- Run | Yrd Mat Mat Mat Sto Rec Scr Fac DSF Fac Gar Fac Gar Fac Gar Fac Gar Res DSF Res Gar Acc Gar Acc Combat Hostiles Destroyed 226 | . 3 33 25 11 5 2 . 5 1 28 . 13 9 4 5 24 . 1 . 20 . 26 11 Guns 115 | . 3 30 8 2 5 . . 1 . 15 . 2 5 . 1 9 . 1 . 12 . 15 6 Cannons 73 | . . . 4 4 . . . 1 1 13 . 11 4 2 1 13 . . . 5 . 9 5 AOE 26 | . . 2 11 5 . 2 . 3 . . . . . . 1 . . . . 2 . . . Classes Destroyed 23 | . 2 10 2 1 1 2 . 2 . . . . 1 . . 1 . . . . . . 1 Worker 11 | . . 3 1 4 . . . . . . . . . . 1 . . . . . . . 2 Builder 8 | . . 2 3 2 . . . . . . . . . . . . . . . . . . 1 Tunneler 2 | . . 1 . . . . . 1 . . . . . . . . . . . . . . . Hauler 11 | . . 3 2 1 . . . . 1 . 1 . . . 2 . . . . . . . 1 Recycler 7 | . . 2 3 2 . . . . . . . . . . . . . . . . . . . Mechanic 1 | . . 1 . . . . . . . . . . . . . . . . . . . . . Operator 3 | . 1 1 1 . . . . . . . . . . . . . . . . . . . . Watcher 10 | . . 4 2 1 . . . . . . . 1 . . . . . . . 1 . . 1 Swarmer 34 | . . 6 4 . . . . 2 . 7 . 4 2 . 1 5 . . . 3 . . . Saboteur 1 | . . . . . . . . . . . . . . . . . . . . . . . 1 Grunt 89 | . 3 17 14 5 . . . . . 13 . 3 . 2 4 12 . . . 4 . 9 3 Brawler 7 | . . 1 . . . . . . . 1 . . 1 2 1 1 . . . . . . . Duelist 5 | . . . 2 . . . . . . . . . . . . . . . . . . 1 2 Protector 1 | . . . . . . . . 1 . . . . . . . . . . . . . . . Sentry 39 | . . 9 4 5 4 . . . . 3 . 1 1 1 2 2 . . . 4 . 2 1 Demolisher 1 | . . . . . . . . . . . . . 1 . . . . . . . . . . Specialist 6 | . . . . . . . . 3 . . . . . . . . . . . . . 2 1 Hunter 18 | . . . . 1 . . . . 1 . . . 2 . . 1 . . . 7 . 4 2 Programmer 24 | . . . . . 1 . . . . 4 . 5 1 . . 2 . . . 2 . 8 1 Heavy 2 | . . . 1 . . . . . . . . . 1 . . . . . . . . . . Behemoth 3 | . . . . . . . . . . . . . . . . 1 . . . 1 . 1 . Federalist 1 | . . . . . . 1 . . . . . . . . . . . . . . . . . Ranger 1 | . . . . . . 1 . . . . . . . . . . . . . . . . . Butcher 1 | . . . . . . . . . . . . . . . . . . 1 . . . . . Best Kill Streak 12 | . 1 5 12 7 1 2 . 4 2 4 1 5 4 2 3 4 . 1 . 4 . 7 5 Combat Bots Only 8 | . 1 4 8 3 1 2 . 4 1 4 . 5 4 2 2 4 . 1 . 4 . 7 4 Max Kills in Single Turn 7 | . 1 2 3 7 1 1 . 2 1 1 1 1 1 1 4 1 . 1 . 2 . 2 2 Gunslinging 1 | . . 1 . . . . . . . . . . . . . . . . . 1 . . . Exploded 3 | . . 1 3 3 . 1 . 2 . . . . . . 1 . . . . 1 . . . Melee . | . . . . . . . . . . . . . . . . . . . . . . . . Uniques/NPCs Destroyed . | . . . . . . . . . . . . . . . . . . . . . . . . Combat | -11 -10 -9 -8 -8 -8 -8 -6 -6 -5 -5 -5 -5 -4 -4 -4 -4 -3 -3 -2 -2 -1 -1 -1 -------- Run | Yrd Mat Mat Mat Sto Rec Scr Fac DSF Fac Gar Fac Gar Fac Gar Fac Gar Res DSF Res Gar Acc Gar Acc Hostile Shots Fired 2012 | . 20 182 136 62 14 4 . 44 6 182 . 126 111 174 29 377 . 6 . 212 . 221 106 Missed 641 | . 4 48 29 13 5 . . 12 1 41 . 44 47 76 13 103 . 2 . 74 . 95 34 Deflected 2 | . . . . . . . . . . . . . . 2 . . . . . . . . . Hits 1371 | . 16 134 107 49 9 4 . 32 5 141 . 82 64 98 16 274 . 4 . 138 . 126 72 Melee 16 | . . 1 . . . . . . . 2 . . 1 2 . 1 . 3 . 1 . . 5 Projectile 1355 | . 16 133 107 49 9 4 . 32 5 139 . 82 63 96 16 273 . 1 . 137 . 126 67 AOE 13 | . . . . . . . . . . . . . 9 3 . . . . . . . . 1 Critical Strikes 63 | . . 3 5 3 1 . . 1 . 7 . 5 3 4 . 14 . 2 . 7 . 3 5 Actively Blocked 17 | . . . . . . . . . . . . . 1 4 . 5 . . . 3 . 1 3 Part Disruptions 4 | . . 2 . . . . . . . . . 1 . . . . . . . 1 . . . Damage Taken 28203 | . 199 1789 1833 902 131 47 . 777 93 2706 . 1728 1702 2004 372 5488 . 178 . 3557 . 2796 1901 Core 2951 | . 27 367 275 197 15 6 . 181 . 345 . 196 67 201 94 511 . 33 . 135 . 216 85 Absorbed by Shields 61 | . . . . . . 15 . 46 . . . . . . . . . . . . . . . Reduced by Siege Mode 107 | . . . . . . . . . . . . . . . . 107 . . . . . . . Redirected to Shielding 47 | . . 6 41 . . . . . . . . . . . . . . . . . . . . Ignored by Resistances 168 | . . . . . . . . . . . . . . . . 62 . . . . . 91 15 Regen/Repaired (Parts) 615 | . . 213 70 45 . . . . . . . . . . 287 . . . . . . . . Core Remaining (%) 62 | 100 89 8 . . . 10 . 78 . . . 45 . . . 24 . 97 . 90 . . 81 Volleys Fired 1144 | . 20 147 69 37 12 6 . 10 7 121 1 131 34 46 36 154 3 10 . 167 4 75 54 Largest 2 | . 2 2 2 2 2 2 . 2 2 2 2 2 2 2 2 2 1 2 . 2 2 2 2 Hottest 240 | . 60 112 136 151 122 151 . 151 151 159 98 123 185 140 123 210 7 168 . 240 76 240 116 Shots Fired 1908 | . 39 243 134 67 23 9 . 19 14 229 2 205 57 62 51 255 3 18 . 234 7 138 99 Gun 1045 | . 39 239 90 32 23 3 . 8 7 99 . 70 28 6 21 117 . 8 . 124 6 80 45 Cannon 639 | . . . 29 27 . 3 . 7 7 127 2 104 23 37 18 105 . 6 . 41 . 53 50 Launcher 34 | . . 4 15 8 . 3 . 4 . . . . . . . . . . . . . . . Special 190 | . . . . . . . . . . 3 . 31 6 19 12 33 3 4 . 69 1 5 4 Kinetic 813 | . 20 63 . . . . . 1 . 157 2 168 21 37 11 65 . . . 81 6 86 95 Thermal 863 | . 17 165 119 54 23 6 . 14 14 69 . 6 30 6 28 182 . 18 . 65 . 47 . Explosive 19 | . . 4 15 . . . . . . . . . . . . . . . . . . . . Electromagnetic 67 | . 2 11 . 13 . 3 . 4 . . . . . . . . . . . 34 . . . Robot Hit Streak 33 | . 11 18 24 9 18 1 . 4 12 28 5 8 11 8 19 26 4 5 . 33 4 14 14 Robot Miss Streak 6 | . 3 6 3 2 1 2 . 1 1 5 . 6 3 3 3 6 . 1 . 3 . 4 4 Penetration Max 2 | . . . . . . . . . . 1 . 1 . . . 1 . . . 2 . 2 2 Secondary Targets 16 | . . 5 2 . . . . . . 3 . . . 1 . 2 . . . 2 . 1 . Max Gunslinging Chain 1 | . . 1 1 . . . . . . 1 . . . 1 . 1 . . . 1 . 1 . Shots Hit Robots 1262 | . 28 172 94 50 30 2 . 9 11 160 2 82 36 38 39 178 3 9 . 161 1 96 61 Core Hits 549 | . 11 70 61 29 6 4 . 11 6 70 1 22 17 9 16 62 . 3 . 49 1 59 42 Critical Kills 30 | . . . . . . . . . . 6 1 2 . . . 7 . . . 2 . 12 . Critical Parts Destroyed 43 | . . 1 . . . . . . . 12 . 7 . . . 9 . . . 4 . 10 . Critical Strikes 127 | . . 16 5 3 . . . 1 . 20 1 24 . 2 2 21 . 1 . 7 . 22 2 Burn 30 | . . 15 5 3 . . . 1 . . . . . 1 . 4 . 1 . . . . . Meltdown 3 | . . . . . . . . . . . . . . . . . . . . 1 . 2 . Destroy 77 | . . 1 . . . . . . . 18 1 16 . . . 16 . . . 5 . 20 . Blast 16 | . . . . . . . . . . 2 . 8 . 1 2 1 . . . . . . 2 Sever 1 | . . . . . . . . . . . . . . . . . . . . 1 . . . Melee Attacks 25 | . . . . . 12 . . . . 13 . . . . . . . . . . . . . Impact 10 | . . . . . . . . . . 10 . . . . . . . . . . . . . Slashing . | . . . . . . . . . . . . . . . . . . . . . . . . Piercing . | . . . . . . . . . . . . . . . . . . . . . . . . Sneak Attacks 9 | . . . . . 8 . . . . 1 . . . . . . . . . . . . . Combat Hostiles 1 | . . . . . . . . . . 1 . . . . . . . . . . . . . Follow-up Attacks . | . . . . . . . . . . . . . . . . . . . . . . . . Damage Inflicted 33739 | . 265 2628 3020 1925 380 228 . 514 263 3416 51 2158 1284 1077 2063 5222 . 257 . 3444 49 3164 2331 Guns 15453 | . 265 2405 1130 580 380 20 . 38 100 1409 . 438 623 133 527 2152 . 122 . 2217 49 1819 1046 Cannons 13462 | . . . 431 412 . 87 . 160 163 2007 51 1720 661 944 617 2587 . 135 . 864 . 1345 1278 Explosions 3938 | . . 220 1383 933 . 121 . 316 . . . . . . 859 . . . . 106 . . . Melee . | . . . . . . . . . . . . . . . . . . . . . . . . Ramming 177 | . . 3 76 . . . . . . . . . . . 60 . . . . 31 . . 7 Kinetic 14023 | . 96 439 . . . . . 18 . 2237 51 2158 661 944 397 1323 . . . 1349 49 1977 2324 Thermal 16198 | . 169 1855 1561 1325 380 107 . 304 263 1179 . . 623 133 1606 3899 . 257 . 1350 . 1187 . Explosive 1603 | . . 220 1383 . . . . . . . . . . . . . . . . . . . . Electromagnetic 1738 | . . 111 . 600 . 121 . 192 . . . . . . . . . . . 714 . . . Impact . | . . . . . . . . . . . . . . . . . . . . . . . . Slashing . | . . . . . . . . . . . . . . . . . . . . . . . . Piercing . | . . . . . . . . . . . . . . . . . . . . . . . . Highest Corruption 18 | . . 1 . 2 2 2 . . . 13 13 18 1 9 9 16 . . . 8 . 7 14 Average Corruption 8 | . . 1 . 1 2 2 . . . 8 13 17 1 4 9 15 . . . 2 . 5 10 Corruption Purged . | . . . . . . . . . . . . . . . . . . . . . . . . Corruption Blocked . | . . . . . . . . . . . . . . . . . . . . . . . . Effects 470 | . . 3 . 10 15 . . . . 80 8 114 . 28 20 104 . . . 34 . 22 32 Message Errors 104 | . . . . 1 4 . . . . 21 2 25 . 4 7 19 . . . 8 . 7 6 Matter Fused 107 | . . 2 . 7 4 . . . . 21 1 21 . 3 3 26 . . . 10 . 4 5 Heat Flow Errors 52 | . . 1 . 1 1 . . . . 10 . 8 . 5 2 12 . . . 4 . 4 4 Energy Discharges 55 | . . . . . 1 . . . . 8 2 19 . 6 1 9 . . . 5 . 2 2 Parts Rejected 4 | . . . . . . . . . . 1 . . . . 1 2 . . . . . . . Parts Fused 4 | . . . . . 1 . . . . . . . . . . 2 . . . . . . 1 Data Loss (minor) 59 | . . . . 1 1 . . . . 10 3 15 . 4 2 13 . . . 3 . 3 4 Data Loss (major) 25 | . . . . . 2 . . . . 1 . 9 . 3 1 5 . . . 1 . 1 2 Misfires 21 | . . . . . . . . . . 3 . 7 . 1 1 5 . . . 2 . . 2 Alerts 13 | . . . . . 1 . . . . 1 . 2 . 2 2 2 . . . 1 . 1 1 Weapon Failures 26 | . . . . . . . . . . 4 . 8 . . . 9 . . . . . . 5 Overload Shots . | . . . . . . . . . . . . . . . . . . . . . . . . Overflow Damage 566 | . . 18 24 64 . 1 . 4 . 16 . 107 23 31 155 23 . . . 91 . . 9 Projectiles 298 | . . . . . . 1 . 4 . 16 . 107 23 24 . 23 . . . 91 . . 9 Explosions 268 | . . 18 24 64 . . . . . . . . . 7 155 . . . . . . . . Melee . | . . . . . . . . . . . . . . . . . . . . . . . . Knockbacks 58 | . . . . . . . . . . 7 . 18 1 4 1 19 . . . 1 . . 7 Impact 2 | . . . . . . . . . . . . . . . 1 . . . . 1 . . . Kinetic 48 | . . . . . . . . . . 7 . 16 1 3 . 15 . . . . . . 6 Secondary 8 | . . . . . . . . . . . . 2 . 1 . 4 . . . . . . 1 Self-Inflicted Damage 509 | . . 78 61 145 . . . 54 . . . . . 94 77 . . . . . . . . Shots 15 | . . 2 3 6 . . . 2 . . . . . 1 1 . . . . . . . . Rammed 9 | . . 2 7 . . . . . . . . . . . . . . . . . . . . Targets Rammed 15 | . . 2 8 . . . . . . . . . . . 3 . . . . 1 . . 1 Kicked 5 | . . . . . . . . . . . . . . . 3 . . . . 1 . . 1 Crushed 1 | . . . 1 . . . . . . . . . . . . . . . . . . . . Highest Temperature 543 | . 94 357 386 292 270 75 . 30 132 386 12 293 288 230 66 521 . 269 . 330 . 543 169 Average Temperature 94 | . 26 82 121 70 83 39 . 13 62 87 9 77 55 84 28 191 . 141 . 85 . 144 67 Received Heat Transfer 4645 | . 114 588 702 342 45 26 . . . 655 . 258 21 102 57 1186 . . . 135 . 243 171 Effects 14 | . . 1 1 2 . . . . . 4 . . . . . 4 . . . . . 2 . Energy Bleed 3 | . . 1 . . . . . . . 1 . . . . . 1 . . . . . . . Interference 6 | . . . . 2 . . . . . 2 . . . . . 2 . . . . . . . Matter Decay 3 | . . . 1 . . . . . . 1 . . . . . . . . . . . 1 . Damage (minor) 1 | . . . . . . . . . . . . . . . . . . . . . . 1 . Damage (major) 1 | . . . . . . . . . . . . . . . . 1 . . . . . . . Siege Activations 1 | . . . . . . . . . . . . . . . . 1 . . . . . . . Total Turns 31 | . . . . . . . . . . . . . . . . 31 . . . . . . . Longest Duration 31 | . . . . . . . . . . . . . . . . 31 . . . . . . . Martial Activations . | . . . . . . . . . . . . . . . . . . . . . . . . Shielding Activations 1 | . . . . . . . . . . . . . . 1 . . . . . . . . . Total Turns 8 | . . . . . . . . . . . . . . 8 . . . . . . . . . Longest Duration 8 | . . . . . . . . . . . . . . 8 . . . . . . . . . Robots Disrupted . | . . . . . . . . . . . . . . . . . . . . . . . . Combat Hostiles . | . . . . . . . . . . . . . . . . . . . . . . . . Robots Corrupted 1 | . . . . . . . . . . . . . . . . . . . . 1 . . . Combat Hostiles 1 | . . . . . . . . . . . . . . . . . . . . 1 . . . Parts Fried 13 | . . . . 4 . . . . . . . . . . . . . . . 7 . 2 . Impact Corruptions . | . . . . . . . . . . . . . . . . . . . . . . . . Robots Melted 12 | . . 1 2 . . . . . . . . . . 2 2 2 . . . 1 . 2 . Combat Hostiles 11 | . . 1 2 . . . . . . . . . . 2 2 2 . . . . . 2 . Parts Melted 59 | . 1 8 15 4 3 . . . . . . . 1 3 4 8 . . . 3 . 9 . Heat Transferred 25605 | . 375 5347 3626 2239 666 119 . 499 407 1628 . . 740 311 1579 5269 . 407 . 1471 . 922 . Parts Sabotaged 3 | . . . . . . . . . . . . . . . . . . . . . . . 3 Parts Stolen . | . . . . . . . . . . . . . . . . . . . . . . . . Parts Stripped . | . . . . . . . . . . . . . . . . . . . . . . . . Power Chain Reactions 10 | . . . . 3 . 2 . 4 . . . . . . . . . . . 1 . . . Alert | -11 -10 -9 -8 -8 -8 -8 -6 -6 -5 -5 -5 -5 -4 -4 -4 -4 -3 -3 -2 -2 -1 -1 -1 ------- Run | Yrd Mat Mat Mat Sto Rec Scr Fac DSF Fac Gar Fac Gar Fac Gar Fac Gar Res DSF Res Gar Acc Gar Acc Maximum Alert Level 5 | . . 2 2 1 . . . . . 5 3 5 4 5 5 5 4 3 2 5 4 5 4 Low Security (%) 21 | 100 100 65 76 25 100 . 100 100 100 6 . . . . . . . . . . . . . Level 1 6 | . . 28 14 75 . . . . . 3 . . . . . . . . . . . . . Level 2 5 | . . 6 8 . . . . . . 16 . 1 . . . . . . 100 13 . . . Level 3 12 | . . . . . . . . . . 18 100 13 1 13 13 . . 100 . 32 . 6 . Level 4 33 | . . . . . . . . . . 37 . 35 98 72 53 43 100 . . 36 100 25 100 Level 5 20 | . . . . . . . . . . 17 . 50 . 14 33 56 . . . 17 . 67 . High Security . | . . . . . . . . . . . . . . . . . . . . . . . . Max Security . | . . . . . . . . . . . . . . . . . . . . . . . . Sterilizations 1 | . . . . . . . . . . . . . . . . . . 1 . . . . . Peak Influence 2254 | . 30 415 500 374 87 . . 129 84 1958 1027 2198 1515 1784 1801 2254 1267 996 560 2026 1265 2229 1529 Initial 1336 | . . . 159 203 67 . . . 67 56 1027 658 1153 1022 936 1133 1267 894 560 405 1215 988 1336 Average 1017 | . 4 153 158 259 4 . . 51 69 1119 991 1485 1332 1424 1418 1628 1230 952 550 1213 1234 1717 1394 Influence Increases 15302 | . 102 1052 833 442 116 . . 169 54 2052 14 1820 768 942 1121 1541 5 102 . 1941 60 1551 617 Destroy 0b10 Robot/C 6300 | . 60 660 500 220 100 . . 100 20 740 . 460 340 340 360 700 . 40 . 600 20 800 240 Destroy 0b10 Robot/NC 370 | . 5 85 60 50 . . . . 5 10 5 10 20 . 30 25 . 5 . 25 . 5 30 Destroy Leader 1040 | . 20 184 128 84 . . . 10 12 50 2 50 62 40 94 70 . 10 . 60 10 100 54 Allied During Kill 1596 | . . . . . . . . . . 91 5 130 173 156 403 100 . 11 . 246 30 243 8 Successful Hack 155 | . 17 19 . 10 16 . . . . 32 . 14 . 14 . . 5 . . 14 . 14 . Select Force Hacks 30 | . . . 30 . . . . . . . . . . . . . . . . . . . . Disable Machine 435 | . . . . 30 . . . 15 15 15 . 60 105 . 120 . . 15 . 15 . 15 30 Anti-Garrison Action 3700 | . . . . . . . . . . 900 . 800 . 300 . 500 . . . 800 . 250 150 Destroy Structure 1076 | . . 29 100 18 . . . 14 2 154 2 176 68 92 114 56 . 6 . 121 . 79 45 Partial Spotted 60 | . . . . 15 . . . . . . . . . . . . . 15 . . . . 30 Lose Combat Pursuer 540 | . . 75 15 15 . . . 30 . 60 . 120 . . . 90 . . . 60 . 45 30 Influence Decreases 13819 | . 102 673 730 751 289 . . 40 102 175 1031 563 1505 619 1286 906 1067 298 456 455 851 557 1363 Entered New Map 8531 | . . . 220 279 106 . . . 62 25 931 283 1045 439 848 486 987 298 436 135 811 247 893 Time Decay 2622 | . 92 544 440 262 106 . . . 40 . 100 . 310 . 238 . 80 . 20 . 40 . 350 Lost Part 1079 | . 10 109 70 60 . . . 30 . 70 . 80 30 80 10 220 . . . 140 . 110 60 Lost Ally 1190 | . . . . . . . . 10 . 80 . 200 120 100 40 200 . . . 180 . 200 60 Purge Threat 397 | . . 20 . 150 77 . . . . . . . . . 150 . . . . . . . . Squads Dispatched 44 | . 1 6 8 4 . . . 1 . . . . 6 . 3 . . 2 . . . . 13 Investigation 9 | . . 3 4 . . . . . . . . . . . 1 . . . . . . . 1 Extermination 2 | . . . . . . . . . . . . . 1 . . . . . . . . . 1 Reinforcement 17 | . 1 3 4 1 . . . 1 . . . . 2 . 1 . . 2 . . . . 2 Assault 12 | . . . . . . . . . . . . . 3 . 1 . . . . . . . 8 Garrison 4 | . . . . 3 . . . . . . . . . . . . . . . . . . 1 Intercept . | . . . . . . . . . . . . . . . . . . . . . . . . Searches Triggered . | . . . . . . . . . . . . . . . . . . . . . . . . Construction Impeded 3 | . . 1 . 1 . . . . . . . . 1 . . . . . . . . . . Haulers Reinforced 2 | . . . . . . . . . . . . . . . 1 . . . . . . . 1 Active Scanning Responses . | . . . . . . . . . . . . . . . . . . . . . . . . Cargo Convoy Interrupts . | . . . . . . . . . . . . . . . . . . . . . . . . Stealth | -11 -10 -9 -8 -8 -8 -8 -6 -6 -5 -5 -5 -5 -4 -4 -4 -4 -3 -3 -2 -2 -1 -1 -1 --------- Run | Yrd Mat Mat Mat Sto Rec Scr Fac DSF Fac Gar Fac Gar Fac Gar Fac Gar Res DSF Res Gar Acc Gar Acc Distress Signals 9 | . . 1 4 2 . . . . . . . . . . 1 . . . . . . . 1 Communications Jammed 2 | . . . . . . . . . . . . . . . 2 . . . . . . . . Distress Signals 2 | . . . . . . . . . . . . . . . 2 . . . . . . . . Times Spotted 486 | . 9 47 37 13 5 25 . 7 1 44 . 37 25 34 19 44 . 4 . 62 1 44 28 Peak Tracking Total 12 | . 2 4 8 4 1 8 . 5 1 6 . 9 6 9 3 9 . 3 . 12 1 10 9 Tactical Retreats 31 | . . 4 1 1 . . . 2 . 3 . 8 . . . 4 . . . 4 . 2 2 Traps | -11 -10 -9 -8 -8 -8 -8 -6 -6 -5 -5 -5 -5 -4 -4 -4 -4 -3 -3 -2 -2 -1 -1 -1 ------- Run | Yrd Mat Mat Mat Sto Rec Scr Fac DSF Fac Gar Fac Gar Fac Gar Fac Gar Res DSF Res Gar Acc Gar Acc Traps Triggered 30 | . . 3 2 . . . . 1 . 10 . 7 . . . . . 2 . 4 . . 1 Indirectly . | . . . . . . . . . . . . . . . . . . . . . . . . Trap Hack Attempts . | . . . . . . . . . . . . . . . . . . . . . . . . Triggered . | . . . . . . . . . . . . . . . . . . . . . . . . Disarmed . | . . . . . . . . . . . . . . . . . . . . . . . . Reprogrammed 4 | . . . . 4 . . . . . . . . . . . . . . . . . . . Reused . | . . . . . . . . . . . . . . . . . . . . . . . . Traps Extracted . | . . . . . . . . . . . . . . . . . . . . . . . . Installed 1 | . . . . . . . . . . . . 1 . . . . . . . . . . . Triggered . | . . . . . . . . . . . . . . . . . . . . . . . . Machines | -11 -10 -9 -8 -8 -8 -8 -6 -6 -5 -5 -5 -5 -4 -4 -4 -4 -3 -3 -2 -2 -1 -1 -1 ---------- Run | Yrd Mat Mat Mat Sto Rec Scr Fac DSF Fac Gar Fac Gar Fac Gar Fac Gar Res DSF Res Gar Acc Gar Acc Machines Disabled 66 | . . . . 2 . 1 . 1 1 9 . 9 7 5 8 5 . 1 . 8 . 6 3 Max in Single Turn 3 | . . . . 1 . . . 1 1 2 . 1 1 2 3 1 . 1 . 2 . 2 1 Garrison Access 1 | . . . . . . . . . . . . . . . . . . . . . . . 1 Garrison Relay 26 | . . . . . . . . . . 5 . 4 . 4 . 4 . . . 4 . 5 . Phase Generator 3 | . . . . . . . . . . 1 . . . 1 . . . . . 1 . . . Machines Repaired . | . . . . . . . . . . . . . . . . . . . . . . . . Machines Dismantled 4 | . . . . . . . . . . . . . . . . . . 1 . . . . 3 Machines Sabotaged . | . . . . . . . . . . . . . . . . . . . . . . . . Overloaded Fab Kills . | . . . . . . . . . . . . . . . . . . . . . . . . Hacking | -11 -10 -9 -8 -8 -8 -8 -6 -6 -5 -5 -5 -5 -4 -4 -4 -4 -3 -3 -2 -2 -1 -1 -1 --------- Run | Yrd Mat Mat Mat Sto Rec Scr Fac DSF Fac Gar Fac Gar Fac Gar Fac Gar Res DSF Res Gar Acc Gar Acc Machines Accessed 67 | . 4 11 6 7 8 5 1 . 1 3 1 3 3 2 4 1 1 . 1 2 1 2 . Terminals 45 | . 4 9 2 6 6 . 1 . . 3 . 3 1 2 2 1 1 . . 2 . 2 . Fabricators . | . . . . . . . . . . . . . . . . . . . . . . . . Repair Stations 4 | . . 1 1 1 . . . . . . . . . . 1 . . . . . . . . Recycling Units 2 | . . . 1 . 1 . . . . . . . . . . . . . . . . . . Scanalyzers 3 | . . 1 1 . . . . . . . . . 1 . . . . . . . . . . Garrison Access 7 | . . . 1 . . . . . 1 . 1 . 1 . 1 . . . 1 . 1 . . Total Hacks 185 | . 19 36 10 15 25 31 1 . 1 6 1 7 5 2 11 1 2 . 1 6 2 3 . Successful 113 | . 11 19 4 10 18 31 1 . 1 2 1 1 2 1 3 . 1 . 1 2 2 2 . Failed 72 | . 8 17 6 5 7 . . . . 4 . 6 3 1 8 1 1 . . 4 . 1 . Catastrophic 14 | . 1 2 . . . . . . . 3 . 2 . 1 4 1 . . . . . . . Database Lockouts . | . . . . . . . . . . . . . . . . . . . . . . . . Manual 87 | . 14 26 5 6 20 . . . . 5 . 2 2 1 2 1 . . . 3 . . . Terminals 123 | . 19 27 5 12 23 . 1 . . 6 . 7 2 2 7 1 2 . . 6 . 3 . Fabricators . | . . . . . . . . . . . . . . . . . . . . . . . . Repair Stations 14 | . . 6 2 3 . . . . . . . . . . 3 . . . . . . . . Recycling Units 2 | . . . 1 . 1 . . . . . . . . . . . . . . . . . . Scanalyzers 6 | . . 3 1 . . . . . . . . . 2 . . . . . . . . . . Garrison Access 8 | . . . 1 . . . . . 1 . 1 . 1 . 1 . . . 1 . 2 . . Terminal Hacks 76 | . 8 6 . 7 14 31 1 . . 2 . 1 . 1 1 . 1 . . 1 . 2 . Record 31 | . . . . . 1 30 . . . . . . . . . . . . . . . . . Part Schematic 1 | . . . . . 1 . . . . . . . . . . . . . . . . . . Robot Analysis 1 | . 1 . . . . . . . . . . . . . . . . . . . . . . Prototype ID Bank 1 | . . 1 . . . . . . . . . . . . . . . . . . . . . Open Door 4 | . . . . 3 . . . . . . . . . . . . . . . . . 1 . Open DSF 2 | . . . . . . . 1 . . . . . . . . . 1 . . . . . . Branch Access Points 2 | . . 2 . . . . . . . . . . . . . . . . . . . . . Emergency Access Points 4 | . 1 . . . . . . . . . . 1 . . . . . . . 1 . 1 . Terminal Index 3 | . 2 . . . 1 . . . . . . . . . . . . . . . . . . Repair Station Index 1 | . . . . . 1 . . . . . . . . . . . . . . . . . . Recycling Unit Index 1 | . . . . . 1 . . . . . . . . . . . . . . . . . . Alert Level 1 | . 1 . . . . . . . . . . . . . . . . . . . . . . Unreport Threat 5 | . . 1 . 1 2 . . . . . . . . . 1 . . . . . . . . Locate Traps 2 | . 1 . . 1 . . . . . . . . . . . . . . . . . . . Reprogram Traps 1 | . . . . 1 . . . . . . . . . . . . . . . . . . . Maintenance Status 1 | . . . . . 1 . . . . . . . . . . . . . . . . . . Security Status 1 | . . . . . 1 . . . . . . . . . . . . . . . . . . Surveillance Status 2 | . . . . 1 1 . . . . . . . . . . . . . . . . . . Transport Status 1 | . . . . . 1 . . . . . . . . . . . . . . . . . . Zone Layout 6 | . 1 2 . . 3 . . . . . . . . . . . . . . . . . . Garrison Registry 3 | . 1 . . . . . . . . 1 . . . 1 . . . . . . . . . Patrol Navigation 1 | . . . . . . . . . . 1 . . . . . . . . . . . . . Proto ID Catalog 1 | . . . . . . 1 . . . . . . . . . . . . . . . . . Fabricator Hacks . | . . . . . . . . . . . . . . . . . . . . . . . . Repair Station Hacks 11 | . . 6 2 3 . . . . . . . . . . . . . . . . . . . Scan Component 6 | . . 3 1 2 . . . . . . . . . . . . . . . . . . . Repair 5 | . . 3 1 1 . . . . . . . . . . . . . . . . . . . Recycling Unit Hacks 2 | . . . 1 . 1 . . . . . . . . . . . . . . . . . . Retrieve Components 2 | . . . 1 . 1 . . . . . . . . . . . . . . . . . . Scanalyzer 4 | . . 3 . . . . . . . . . . 1 . . . . . . . . . . Insert Component 2 | . . 1 . . . . . . . . . . 1 . . . . . . . . . . Analyze 2 | . . 2 . . . . . . . . . . . . . . . . . . . . . Garrison Access Hacks 7 | . . . . . . . . . 1 . 1 . 1 . 1 . . . 1 . 2 . . Unlock Access 6 | . . . . . . . . . 1 . 1 . 1 . 1 . . . 1 . 1 . . Coupler Status 1 | . . . . . . . . . . . . . . . . . . . . . 1 . . Unauthorized Hacks 13 | . 3 4 1 . 3 . . . . . . . . . 1 . . . . 1 . . . Terminals 11 | . 3 4 . . 3 . . . . . . . . . . . . . . 1 . . . Botnet 11 | . 3 4 . . 3 . . . . . . . . . . . . . . 1 . . . Fabricators . | . . . . . . . . . . . . . . . . . . . . . . . . Repair Stations 1 | . . . . . . . . . . . . . . . 1 . . . . . . . . Patch 1 | . . . . . . . . . . . . . . . 1 . . . . . . . . Recycling Units . | . . . . . . . . . . . . . . . . . . . . . . . . Scanalyzers 1 | . . . 1 . . . . . . . . . . . . . . . . . . . . Extract 1 | . . . 1 . . . . . . . . . . . . . . . . . . . . Garrison Access . | . . . . . . . . . . . . . . . . . . . . . . . . Data Cores Recovered . | . . . . . . . . . . . . . . . . . . . . . . . . Used . | . . . . . . . . . . . . . . . . . . . . . . . . Hacking Detections 50 | . 4 11 4 5 5 . . . . 3 . 3 3 2 4 1 . . 1 2 1 1 . Full Trace Events 10 | . . 4 1 . . . . . . 2 . 2 . . . . . . . 1 . . . Feedback Events 2 | . . . . . . . . . . 1 . 1 . . . . . . . . . . . Corruption 2 | . . . . . . . . . . 1 . 1 . . . . . . . . . . . Feedback Blocked . | . . . . . . . . . . . . . . . . . . . . . . . . Robot Schematics Acquired . | . . . . . . . . . . . . . . . . . . . . . . . . Robots Built . | . . . . . . . . . . . . . . . . . . . . . . . . Authchips . | . . . . . . . . . . . . . . . . . . . . . . . . Time . | . . . . . . . . . . . . . . . . . . . . . . . . Total Robot Build Rating . | . . . . . . . . . . . . . . . . . . . . . . . . Part Schematics Acquired 4 | . . 1 2 . 1 . . . . . . . . . . . . . . . . . . Parts Built . | . . . . . . . . . . . . . . . . . . . . . . . . Authchips . | . . . . . . . . . . . . . . . . . . . . . . . . Time . | . . . . . . . . . . . . . . . . . . . . . . . . Total Part Build Rating . | . . . . . . . . . . . . . . . . . . . . . . . . Parts Repaired 5 | . . 3 1 1 . . . . . . . . . . . . . . . . . . . Time 207 | . . 109 38 60 . . . . . . . . . . . . . . . . . . . Parts Recycled . | . . . . . . . . . . . . . . . . . . . . . . . . Recycled Matter . | . . . . . . . . . . . . . . . . . . . . . . . . Retrieved Matter . | . . . . . . . . . . . . . . . . . . . . . . . . Retrieved Components 4 | . . . 3 . 1 . . . . . . . . . . . . . . . . . . Parts Scanalyzed 2 | . . 1 . . . . . . . . . . 1 . . . . . . . . . . Part Schematics Acquired 1 | . . 1 . . . . . . . . . . . . . . . . . . . . . Parts Damaged . | . . . . . . . . . . . . . . . . . . . . . . . . Bothacking | -11 -10 -9 -8 -8 -8 -8 -6 -6 -5 -5 -5 -5 -4 -4 -4 -4 -3 -3 -2 -2 -1 -1 -1 ------------ Run | Yrd Mat Mat Mat Sto Rec Scr Fac DSF Fac Gar Fac Gar Fac Gar Fac Gar Res DSF Res Gar Acc Gar Acc Used RIF Installer 5 | . . . . . . . . . . 1 . 1 . 1 . 1 . . . 1 . . . Zone Cloak 1 | . . . . . . . . . . . . . . . . 1 . . . . . . . Robot Detection 1 | . . . . . . . . . . . . 1 . . . . . . . . . . . Watcher Feeds 1 | . . . . . . . . . . . . . . 1 . . . . . . . . . Patrol Navigation 1 | . . . . . . . . . . . . . . . . . . . . 1 . . . Robots Hacked 75 | . . . . . . . . . . 3 . 13 3 14 4 3 2 . . 26 . 4 3 Non-combat 9 | . . . . . . . . . . . . . . . 4 . 2 . . 3 . . . Combat 66 | . . . . . . . . . . 3 . 13 3 14 . 3 . . . 23 . 4 3 Robot Hacks Applied 82 | . . . . . . . . . . 4 . 13 3 14 4 3 3 . . 31 . 4 3 parse_system 11 | . . . . . . . . . . 2 . 2 . . . . . . . 7 . . . no_distress 2 | . . . . . . . . . . . . . . . . . . . . 2 . . . generate_echo 1 | . . . . . . . . . . . . . . . 1 . . . . . . . . map_walls 2 | . . . . . . . . . . . . . . . 2 . . . . . . . . find_dsf 1 | . . . . . . . . . . . . . . . . . 1 . . . . . . drop_inventory 1 | . . . . . . . . . . . . . . . . . 1 . . . . . . mark_security 1 | . . . . . . . . . . . . . . . 1 . . . . . . . . broadcast_data 1 | . . . . . . . . . . . . . 1 . . . . . . . . . . disrupt_area 1 | . . . . . . . . . . . . 1 . . . . . . . . . . . spike_heat 1 | . . . . . . . . . . . . . . . . . . . . 1 . . . amplify_resonance 6 | . . . . . . . . . . . . . 2 1 . . . . . 3 . . . disable_weapons 3 | . . . . . . . . . . . . . . . . . . . . 3 . . . reboot_system 1 | . . . . . . . . . . . . . . . . . . . . 1 . . . overwrite_iff 1 | . . . . . . . . . . . . . . . . . . . . 1 . . . streamctrl_high 1 | . . . . . . . . . . . . . . . . . . . . . . 1 . formatsys_high 48 | . . . . . . . . . . 2 . 10 . 13 . 3 1 . . 13 . 3 3 Relay Couplers Released 104 | . . . . . . . . . . 21 . 13 . 17 . 15 . . . 19 . 17 2 Machine Destruction 104 | . . . . . . . . . . 21 . 13 . 17 . 15 . . . 19 . 17 2 Attached 49 | . . . . . . . . . . 6 . 7 1 12 . 4 . . . 14 1 3 1 Fabnet Peak Effective % . | . . . . . . . . . . . . . . . . . . . . . . . . Robots Rewired 35 | . . . . . 13 . . . . 6 . 2 . 5 . 4 . . . 5 . . . Allies Hacked 3 | . . . . . . . . . . . . . 1 1 . . . . . . . 1 . Hacks Repelled . | . . . . . . . . . . . . . . . . . . . . . . . . Allies | -11 -10 -9 -8 -8 -8 -8 -6 -6 -5 -5 -5 -5 -4 -4 -4 -4 -3 -3 -2 -2 -1 -1 -1 -------- Run | Yrd Mat Mat Mat Sto Rec Scr Fac DSF Fac Gar Fac Gar Fac Gar Fac Gar Res DSF Res Gar Acc Gar Acc Total Allies 95 | . . . . . 13 . . . . 10 . 14 . 20 . 7 1 . . 21 . 6 3 Largest Group 13 | . . . . . 13 13 4 4 . 5 5 10 7 12 11 5 3 3 1 9 7 9 1 Highest-Rated Group 600 | . . . . . 205 205 74 74 . 365 355 531 424 546 538 398 129 129 43 600 473 581 64 Highest-Rated Ally 148 | . . . . . 34 34 27 27 . 119 119 119 116 95 95 148 49 49 43 119 89 89 64 Total Orders 8 | . . . . . . . . . . 2 . 4 . . . 2 . . . . . . . STAY 3 | . . . . . . . . . . 1 . 1 . . . 1 . . . . . . . FOLLOW 5 | . . . . . . . . . . 1 . 3 . . . 1 . . . . . . . Ally Attacks 540 | . . . . . . 29 . . . 29 . 76 41 59 85 68 . 25 . 44 4 67 13 Total Damage 18948 | . . . . . . 1446 . . . 891 . 2911 1633 1815 2694 2466 . 620 . 1674 133 2200 465 Kills 121 | . . . . . . 17 . . . 9 . 11 13 14 17 11 . 2 . 10 1 14 2 Allies Corrupted 4 | . . . . . . . . . . . . . 1 1 . . . . . . . 1 1 Allies Melted 3 | . . . . . . . . . . . . 1 . . . 2 . . . . . . . Intel | -11 -10 -9 -8 -8 -8 -8 -6 -6 -5 -5 -5 -5 -4 -4 -4 -4 -3 -3 -2 -2 -1 -1 -1 ------- Run | Yrd Mat Mat Mat Sto Rec Scr Fac DSF Fac Gar Fac Gar Fac Gar Fac Gar Res DSF Res Gar Acc Gar Acc Active Infowar (turns) 2827 | . . 145 . . . 119 31 57 66 1173 . . 74 . 314 715 . 24 55 54 . . . Optics 1459 | . . 145 . . . . . . 66 1173 . . . . 60 15 . . . . . . . A.S.S. 133 | . . . . . . . . . . . . . . . . . . 24 55 54 . . . Terrain 281 | . . . . . . 118 31 57 . 1 . . 74 . . . . . . . . . . Structural 1 | . . . . . . 1 . . . . . . . . . . . . . . . . . Jamming 1138 | . . . . . . . . . . . . . . . 314 715 . . 55 54 . . . Robot Analysis Total 1 | . 1 . . . . . . . . . . . . . . . . . . . . . . Derelict Logs Recovered . | . . . . . . . . . . . . . . . . . . . . . . . . Drone Launches . | . . . . . . . . . . . . . . . . . . . . . . . . Drone Recoveries . | . . . . . . . . . . . . . . . . . . . . . . . . Exploration | -11 -10 -9 -8 -8 -8 -8 -6 -6 -5 -5 -5 -5 -4 -4 -4 -4 -3 -3 -2 -2 -1 -1 -1 ------------- Run | Yrd Mat Mat Mat Sto Rec Scr Fac DSF Fac Gar Fac Gar Fac Gar Fac Gar Res DSF Res Gar Acc Gar Acc Turns Passed 23857 | 6 405 1915 1095 564 1310 3607 31 150 95 2535 200 2524 698 1274 518 2130 167 356 55 2537 96 805 784 Spaces Moved 12961 | 6 198 808 414 191 732 2009 12 75 79 1447 89 1636 396 769 320 992 119 190 38 1535 56 425 425 Core 8 | . . 1 5 2 . . . . . . . . . . . . . . . . . . . Treads 4549 | . 193 641 360 127 732 2009 12 12 . . . . 5 12 . 446 . . . . . . . Legs 6580 | 6 5 . . . . . . . . 501 89 1326 391 757 320 397 119 190 38 1535 56 425 425 Wheels 1244 | . . 166 49 62 . . . 63 38 736 . . . . . 130 . . . . . . . Hover 561 | . . . . . . . . . 41 210 . 310 . . . . . . . . . . . Flight 19 | . . . . . . . . . . . . . . . . 19 . . . . . . . Fastest Speed 22 | 120 120 95 93 155 160 153 240 100 52 52 120 52 130 120 108 22 120 118 118 110 110 108 113 Average Speed 135 | 120 158 149 175 177 160 160 240 129 75 127 188 116 132 131 112 143 120 118 118 112 110 116 120 Slowest Speed 900 | 120 160 550 850 900 160 240 240 240 100 190 190 400 250 250 120 240 120 120 118 118 110 180 185 Overloaded Moves . | . . . . . . . . . . . . . . . . . . . . . . . . Propulsion Burnouts . | . . . . . . . . . . . . . . . . . . . . . . . . Robots Hopped 1 | . . . . . . 1 . . . . . . . . . . . . . . . . . Potential Cave-ins . | . . . . . . . . . . . . . . . . . . . . . . . . Cave-ins Triggered . | . . . . . . . . . . . . . . . . . . . . . . . . Exploration Rate (%) 46 | 3 42 74 41 37 93 91 . 69 3 93 2 96 14 77 14 68 9 84 1 99 2 36 14 Regions Visited 23 Branch Regions 3 Pre-discovered Areas 1 | . . . . . . 1 . . . . . . . . . . . . . . . . . Known Exits Taken 8 | . . . . . . . 1 . 1 . 1 . 1 . 1 . 1 . 1 . 1 . . Unknown Exits Taken 7 | 1 1 1 1 1 1 1 . . . . . . . . . . . . . . . . . Scrap Searched . | . . . . . . . . . . . . . . . . . . . . . . . . Spaces Dug 21 | . . . . . . . . . . 7 . 5 . . . . . . . 7 . . 2 Terrain Destroyed 537 | . . 22 128 15 . 13 . 14 . 90 1 37 12 61 32 20 . 3 . 51 . 24 14 Melee 7 | . . . . . . . . . . 7 . . . . . . . . . . . . . Projectile 152 | . . . . 2 . . . . . 9 1 37 12 8 3 20 . 3 . 20 . 23 14 AOE 377 | . . 22 128 13 . 13 . 14 . 74 . . . 53 29 . . . . 31 . . . Terrain Rammed . | . . . . . . . . . . . . . . . . . . . . . . . . Walls Destroyed . | . . . . . . . . . . . . . . . . . . . . . . . . Machines Disabled . | . . . . . . . . . . . . . . . . . . . . . . . . Actions | -11 -10 -9 -8 -8 -8 -8 -6 -6 -5 -5 -5 -5 -4 -4 -4 -4 -3 -3 -2 -2 -1 -1 -1 --------- Run | Yrd Mat Mat Mat Sto Rec Scr Fac DSF Fac Gar Fac Gar Fac Gar Fac Gar Res DSF Res Gar Acc Gar Acc Total 17443 | 5 253 1278 636 349 848 2391 15 111 101 1923 121 2103 529 984 430 1425 141 288 48 2129 83 653 599 Wait 1661 | . 21 214 77 74 66 356 . 3 3 145 21 163 54 28 31 62 13 6 7 223 11 65 18 Move 12937 | 5 197 807 413 190 731 2006 11 74 79 1444 88 1635 396 768 320 991 118 189 37 1534 56 424 424 Hop 1 | . . . . . . 1 . . . . . . . . . . . . . . . . . Pick Up 388 | . 6 44 22 19 4 5 . 8 3 46 5 33 13 23 4 46 . 16 1 43 3 25 19 Fast Attach 77 | . . . . . . . . . . 4 1 16 . 5 4 16 1 13 . 13 . 4 . Attach 243 | . 3 25 11 10 . 4 4 6 3 24 1 19 12 16 2 44 . 2 2 20 3 17 15 Detach 40 | . . 2 . 1 . 2 . 1 2 4 . 9 2 2 . 8 . 1 . 3 . 3 . Swap 312 | . 3 18 25 11 2 3 . 3 2 27 1 30 10 19 12 24 4 8 . 61 4 21 24 Drop 309 | . 3 19 11 7 3 8 . 6 2 34 3 46 8 13 8 42 1 26 1 39 2 17 10 Fire 1144 | . 20 147 69 37 12 6 . 10 7 121 1 131 34 46 36 154 3 10 . 167 4 75 54 Melee 25 | . . . . . 12 . . . . 13 . . . . . . . . . . . . . Ram 1 | . . . 1 . . . . . . . . . . . . . . . . . . . . Kick 5 | . . . . . . . . . . . . . . . 3 . . . . 1 . . 1 Crush 9 | . . 2 7 . . . . . . . . . . . . . . . . . . . . Escape Stasis 46 | . . . . . . . . . . 33 . 13 . . . . . . . . . . . Rewire 194 | . . . . . 18 . . . . 28 . 7 . 64 10 38 1 . . 24 . 2 2 Trap 1 | . . . . . . . . . . . . 1 . . . . . . . . . . . Miscellaneous 50 | . . . . . . . . . . . . . . . . . . 17 . 1 . . 32 Route ------- -11/Scrapyard -10/Materials (discovered 2 exits: *Mat x2) -9/Materials (discovered 2 exits: *Mat / *Min) -8/Materials -8/Storage -8/Recycling (discovered 2 exits: *Fac / *Scr) -8/Scraptown (discovered 2 exits: *Fac x2) -6/Factory -6/DSF -5/Factory -5/Garrison (discovered 3 exits: *Fac x3) -5/Factory -5/Garrison (discovered 3 exits: *Fac x3) -4/Factory -4/Garrison (discovered 3 exits: *Fac x3) -4/Factory (discovered 2 exits: *Res / Gar) -4/Garrison (discovered 2 exits: *Res x2) -3/Research -3/DSF -2/Research -2/Garrison (discovered 3 exits: *Acc x3) -1/Access -1/Garrison -1/Access To Epsilon Eridani History --------- Turn | Location | Event 1 | -11/Scrapyard | Discovered new exit (range 3) 7 | -11/Scrapyard | Entered Materials 227 | -10/Materials | Discovered new exit (range 12) 311 | -10/Materials | Discovered new exit (range 9) 313 | -10/Materials | Build established: Mutant 412 | -10/Materials | Entered another Materials area 412 | -9/Materials | Evolved 2 slots: Utility x2 670 | -9/Materials | Lost 4 parts (1p1n2w) 889 | -9/Materials | Lost 4 parts (1p1n1u1w) 985 | -9/Materials | Core integrity fell below 50% 1086 | -9/Materials | Discovered new exit (range 8) 1208 | -9/Materials | Identified exit to Mines 1308 | -9/Materials | Build established: Scavenger-Mutant 1711 | -9/Materials | Build established: Mutant 1760 | -9/Materials | Core integrity fell below 20% 1840 | -9/Materials | Discovered new exit (range 18) 2210 | -9/Materials | Repaired Lgt. Treads 2262 | -9/Materials | Repaired Imp. Medium Laser 2296 | -9/Materials | Repaired Imp. Ion Engine 2327 | -9/Materials | Entered another Materials area 2327 | -8/Materials | Evolved 2 slots: Propulsion x1, Utility x1 2807 | -8/Materials | Build established: Scavenger-Mutant 2989 | -8/Materials | Repaired Deuterium Engine 3196 | -8/Materials | Destroyed 8 combat bots 3203 | -8/Materials | Lost 6 parts (2n2u2w) 3292 | -8/Materials | Discovered new exit (range 15) 3422 | -8/Materials | Entered Storage 3512 | -8/Storage | Garrison activated, responded to threat 3517 | -8/Storage | Core integrity fell below 50% 3659 | -8/Storage | Lost 4 parts (1p2n1w) 3698 | -8/Storage | Build established: Hacker-Mutant 3732 | -8/Storage | Core integrity fell below 20% 3905 | -8/Storage | Repaired Adv. Beam Rifle 3980 | -8/Storage | Used back door to open Recycling access 3980 | -8/Storage | Discovered new exit (range 5) 3986 | -8/Storage | Entered Recycling 4737 | -8/Recycling | Discovered new exit (range 15) 5209 | -8/Recycling | Scanned before Scraplab entrance 5231 | -8/Recycling | Entered Scraplab 5247 | -8/Recycling | Discovered new exit (range 3) 5296 | -8/Recycling | Entered Scraptown 5296 | -8/Scraptown | Accompanied by 13 allies 5379 | -8/Scraptown | Build established: Commander-Mutant 5401 | -8/Scraptown | Learned location of Extension (-6) 5444 | -8/Scraptown | System corruption cleaned by C-Scrubber 5511 | -8/Scraptown | Visited Bundlers 5622 | -8/Scraptown | Discovered new exit (range 5) 5718 | -8/Scraptown | Heard Great Nut preacher, LISTEN AND RECITE! 6039 | -8/Scraptown | Visited UFD Registry 6039 | -8/Scraptown | Registered with UFD as "Metalspreader" 6097 | -8/Scraptown | Visited LU-1G1's Boring Crew 6143 | -8/Scraptown | Visited Botcube Research 6226 | -8/Scraptown | Visited Infowarlord's Domain 6277 | -8/Scraptown | Visited Observation Area 6344 | -8/Scraptown | Visited Derelict Rescue Squad 6354 | -8/Scraptown | Found DRS Beacon 6397 | -8/Scraptown | Visited Curators Association 6439 | -8/Scraptown | Visited Science Guys 6706 | -8/Scraptown | Visited Cartography Club 6936 | -8/Scraptown | Discovered new exit (range 4) 7704 | -8/Scraptown | Visited IN-MT5's Study 7729 | -8/Scraptown | Visited Red Mages 7811 | -8/Scraptown | Visited Cave Peace 7830 | -8/Scraptown | Visited The Evicted 7944 | -8/Scraptown | Visited TADAMA 7979 | -8/Scraptown | Visited Symbiants 8381 | -8/Scraptown | Met Optimus 8381 | -8/Scraptown | Accepted into 0bPrime 8781 | -8/Scraptown | Civil war broke out across Scraptown 8782 | -8/Scraptown | Found Exp. Terrain Scanner 8903 | -8/Scraptown | Lost 18 allies 8903 | -8/Scraptown | Entered Factory 8903 | -6/Factory | Accompanied by 4 allies 8903 | -6/Factory | Evolved 4 slots: Power x1, Propulsion x1, Utility x2 8934 | -6/Factory | Identified exit to DSF 8934 | -6/Factory | Entered DSF 8934 | -6/DSF | Accompanied by 4 allies 8972 | -6/DSF | Additional patrols routed to DSF 8993 | -6/DSF | Lost 3 allies 9056 | -6/DSF | Discovered new exit (range 14) 9070 | -6/DSF | Lost 3 parts (1p1u1w) 9084 | -6/DSF | Entered Factory 9084 | -5/Factory | Evolved 2 slots: Propulsion x2 9141 | -5/Factory | Build established: Hacker-Mutant 9179 | -5/Factory | Identified exit to Garrison 9179 | -5/Factory | Entered Garrison 9231 | -5/Garrison | Triggered checkpoint 9443 | -5/Garrison | Triggered checkpoint 9483 | -5/Garrison | Triggered checkpoint 9588 | -5/Garrison | Discovered new exit (range 12) 9597 | -5/Garrison | Found embedded Infiltrators 9757 | -5/Garrison | Spotted B-86 Titan 9758 | -5/Garrison | Spotted B-90 Cyclops 9894 | -5/Garrison | Discovered new exit (range 50) 9894 | -5/Garrison | Discovered new exit (range 74) 9894 | -5/Garrison | Discovered new exit (range 16) 9922 | -5/Garrison | Installed Relay Interface Framework 9951 | -5/Garrison | Phase Generator disabled 9965 | -5/Garrison | Garrison Relay disabled 10092 | -5/Garrison | Garrison Relay disabled 10174 | -5/Garrison | P-70 Sage assimilated allied Sentinel 6a 10249 | -5/Garrison | Found Relay Coupler [Proto] 10251 | -5/Garrison | Found Relay Coupler [Proto] 10253 | -5/Garrison | Found Relay Coupler [Proto] 10256 | -5/Garrison | Found Relay Coupler [Proto] 10265 | -5/Garrison | Build established: Bothacker-Mutant 10325 | -5/Garrison | Triggered checkpoint 10432 | -5/Garrison | Garrison Relay disabled 10519 | -5/Garrison | Triggered checkpoint 10687 | -5/Garrison | System corruption reached 10% 10857 | -5/Garrison | Garrison Relay disabled 11011 | -5/Garrison | Spotted Executioner 11027 | -5/Garrison | Assimilated Executioner with formatsys_high 11042 | -5/Garrison | Rewired Striker 11068 | -5/Garrison | Garrison Relay disabled 11714 | -5/Garrison | Entered Factory 11714 | -5/Factory | Accompanied by 5 allies 11858 | -5/Factory | Identified exit to Garrison 11914 | -5/Factory | Entered Garrison 11914 | -5/Garrison | Accompanied by 5 allies 11989 | -5/Garrison | Triggered checkpoint 11990 | -5/Garrison | Triggered checkpoint 12044 | -5/Garrison | Lost 6 allies 12069 | -5/Garrison | Triggered checkpoint 12129 | -5/Garrison | Lost 6 parts (2p2n1u1w) 12248 | -5/Garrison | Triggered checkpoint 12274 | -5/Garrison | Garrison Relay disabled 12323 | -5/Garrison | Discovered new exit (range 9) 12339 | -5/Garrison | Spotted B-90 Cyclops 12349 | -5/Garrison | Rewired B-75 Beast 12350 | -5/Garrison | Rewired B-86 Titan 12353 | -5/Garrison | Allies destroyed B-90 Cyclops 12802 | -5/Garrison | Triggered checkpoint 12815 | -5/Garrison | Garrison Relay disabled 12876 | -5/Garrison | Found embedded Infiltrators 12976 | -5/Garrison | Triggered checkpoint 12998 | -5/Garrison | Garrison Relay disabled 13046 | -5/Garrison | Core integrity fell below 50% 13295 | -5/Garrison | Discovered new exit (range 14) 13484 | -5/Garrison | Triggered checkpoint 13491 | -5/Garrison | Garrison Relay disabled 13540 | -5/Garrison | Discovered new exit (range 14) 13556 | -5/Garrison | Expanded RIF knowledge: Robot Detection 13695 | -5/Garrison | Lost 4 allies 13780 | -5/Garrison | Found Adv. Force Booster 14438 | -5/Garrison | Entered Factory 14438 | -4/Factory | Accompanied by 7 allies 14438 | -4/Factory | Evolved 2 slots: Propulsion x1, Utility x1 14688 | -4/Factory | First assault squad dispatched 14900 | -4/Factory | Lost 7 allies 15136 | -4/Factory | Identified exit to Garrison 15136 | -4/Factory | Entered Garrison 15204 | -4/Garrison | Triggered checkpoint 15244 | -4/Garrison | Garrison Relay disabled 15286 | -4/Garrison | Spotted B-86 Titan 15306 | -4/Garrison | Allies destroyed B-86 Titan 15312 | -4/Garrison | Triggered checkpoint 15326 | -4/Garrison | Triggered checkpoint 15370 | -4/Garrison | Triggered checkpoint 15393 | -4/Garrison | Lost 4 parts (2n2u) 15526 | -4/Garrison | Discovered new exit (range 9) 15534 | -4/Garrison | Found embedded Infiltrators 15647 | -4/Garrison | Phase Generator disabled 15683 | -4/Garrison | Discovered new exit (range 88) 15683 | -4/Garrison | Discovered new exit (range 20) 15683 | -4/Garrison | Discovered new exit (range 47) 15716 | -4/Garrison | Triggered checkpoint 15717 | -4/Garrison | Build established: Scavenger-Mutant 15736 | -4/Garrison | Garrison Relay disabled 15990 | -4/Garrison | Triggered checkpoint 16010 | -4/Garrison | Garrison Relay disabled 16218 | -4/Garrison | Triggered checkpoint 16250 | -4/Garrison | Triggered checkpoint 16314 | -4/Garrison | Expanded RIF knowledge: Watcher Feeds 16410 | -4/Garrison | Entered Factory 16410 | -4/Factory | Accompanied by 11 allies 16462 | -4/Factory | Spotted B-86 Titan 16471 | -4/Factory | Allies destroyed B-86 Titan 16788 | -4/Factory | Lost 3 allies 16843 | -4/Factory | Discovered new exit (range 34) 16910 | -4/Factory | First assault squad dispatched 16928 | -4/Factory | Identified exit to Garrison 16928 | -4/Factory | Entered Garrison 16928 | -4/Garrison | Accompanied by 5 allies 16928 | -4/Garrison | Spotted B-90 Cyclops 16934 | -4/Garrison | Spotted B-86 Titan 16938 | -4/Garrison | Rewired B-90 Cyclops 16942 | -4/Garrison | Allies destroyed B-90 Cyclops 16946 | -4/Garrison | Rewired B-86 Titan 16951 | -4/Garrison | Allies destroyed B-86 Titan 17175 | -4/Garrison | System corruption reached 10% 17256 | -4/Garrison | Lost 5 allies 17666 | -4/Garrison | Triggered checkpoint 17725 | -4/Garrison | Garrison Relay disabled 17990 | -4/Garrison | Spotted B-86 Titan 17992 | -4/Garrison | Triggered checkpoint 18006 | -4/Garrison | Triggered checkpoint 18044 | -4/Garrison | Destroyed B-86 Titan 18046 | -4/Garrison | Lost 3 allies 18079 | -4/Garrison | Core integrity fell below 50% 18102 | -4/Garrison | Lost 14 parts (2p5n3u4w) 18394 | -4/Garrison | Triggered checkpoint 18465 | -4/Garrison | Lost 5 parts (1p1n1u2w) 18612 | -4/Garrison | Discovered new exit (range 9) 18672 | -4/Garrison | Triggered checkpoint 18759 | -4/Garrison | Garrison Relay disabled 18911 | -4/Garrison | Expanded RIF knowledge: Zone Cloak 18946 | -4/Garrison | Garrison Relay disabled 18979 | -4/Garrison | Triggered checkpoint 19007 | -4/Garrison | Garrison Relay disabled 19036 | -4/Garrison | Discovered new exit (range 8) 19058 | -4/Garrison | Entered Research 19058 | -3/Research | Accompanied by 2 allies 19058 | -3/Research | Evolved 2 slots: Propulsion x1, Utility x1 19212 | -3/Research | Identified exit to DSF 19225 | -3/Research | Entered DSF 19225 | -3/DSF | Accompanied by 3 allies 19268 | -3/DSF | Additional patrols routed to DSF 19301 | -3/DSF | Wild Derelicts raided the area 19428 | -3/DSF | Found Prototype Device 19428 | -3/DSF | Identified Active Sensor Suite 19451 | -3/DSF | Sterilization system engaged 19471 | -3/DSF | Ambient heat levels rising (+10) 19473 | -3/DSF | Discovered new exit (range 14) 19486 | -3/DSF | Ambient heat levels rising (+10) 19501 | -3/DSF | Ambient heat levels rising (+10) 19516 | -3/DSF | Ambient heat levels rising (+10) 19531 | -3/DSF | Ambient heat levels rising (+10) 19546 | -3/DSF | Ambient heat levels rising (+10) 19561 | -3/DSF | Ambient heat levels rising (+10) 19576 | -3/DSF | Ambient heat levels rising (+10) 19581 | -3/DSF | Entered Research 19581 | -2/Research | Accompanied by 1 ally 19581 | -2/Research | Evolved 2 slots: Utility x2 19593 | -2/Research | Identified exit to Garrison 19636 | -2/Research | Entered Garrison 19636 | -2/Garrison | Accompanied by 1 ally 19670 | -2/Garrison | Triggered checkpoint 19702 | -2/Garrison | Garrison Relay disabled 19738 | -2/Garrison | Build established: Bothacker-Skirmisher 19843 | -2/Garrison | Spotted B-90 Cyclops 19852 | -2/Garrison | Triggered checkpoint 19856 | -2/Garrison | Destroyed B-90 Cyclops 19864 | -2/Garrison | Triggered checkpoint 19954 | -2/Garrison | Lost 6 parts (3n3u) 20236 | -2/Garrison | Discovered new exit (range 9) 20292 | -2/Garrison | Triggered checkpoint 20318 | -2/Garrison | Garrison Relay disabled 20551 | -2/Garrison | Phase Generator disabled 20732 | -2/Garrison | Discovered new exit (range 10) 20764 | -2/Garrison | Expanded RIF knowledge: Patrol Navigation 20790 | -2/Garrison | Triggered checkpoint 20804 | -2/Garrison | Garrison Relay disabled 20852 | -2/Garrison | Spotted Executioner 20865 | -2/Garrison | Rewired Executioner 20873 | -2/Garrison | Allies destroyed Executioner 20877 | -2/Garrison | Found Exp. Targeting Computer 20893 | -2/Garrison | Found Prototype Processor 20893 | -2/Garrison | Identified Exp. Core Analyzer 21108 | -2/Garrison | Triggered checkpoint 21117 | -2/Garrison | P-80 Master assimilated allied Warden 9c 21180 | -2/Garrison | Lost 3 parts (1n2u) 21182 | -2/Garrison | Triggered checkpoint 21186 | -2/Garrison | Build established: Scavenger-Mutant 21290 | -2/Garrison | Garrison Relay disabled 21312 | -2/Garrison | Found embedded Infiltrators 21391 | -2/Garrison | Discovered new exit (range 14) 21934 | -2/Garrison | Lost 5 allies 22173 | -2/Garrison | Entered Access 22173 | -1/Access | Accompanied by 7 allies 22173 | -1/Access | Evolved 2 slots: Power x1, Utility x1 22269 | -1/Access | Identified exit to Garrison 22269 | -1/Access | Entered Garrison 22269 | -1/Garrison | Accompanied by 7 allies 22300 | -1/Garrison | Rescued a captive Derelict 22301 | -1/Garrison | Rescued a captive Derelict 22362 | -1/Garrison | Triggered checkpoint 22364 | -1/Garrison | Lost 6 allies 22393 | -1/Garrison | Found Quantum Capacitor 22411 | -1/Garrison | Garrison Relay disabled 22420 | -1/Garrison | P-80 Master assimilated allied GT-65W(b) 22491 | -1/Garrison | Triggered checkpoint 22491 | -1/Garrison | Spotted B-99 Colossus 22534 | -1/Garrison | Destroyed B-99 Colossus 22545 | -1/Garrison | Found Prototype Ballistic Gun 22546 | -1/Garrison | Identified Multirail 22550 | -1/Garrison | Found Hvy. Reflective Plating 22627 | -1/Garrison | Lost 3 parts (2n1u) 22676 | -1/Garrison | Triggered checkpoint 22734 | -1/Garrison | Destroyed 7 combat bots 22786 | -1/Garrison | Lost 4 parts (2n2u) 22953 | -1/Garrison | Discovered new exit (range 12) 23031 | -1/Garrison | Garrison Relay disabled 23031 | -1/Garrison | Garrison Relay disabled 23032 | -1/Garrison | Garrison Relay disabled 23032 | -1/Garrison | Garrison Relay disabled 23074 | -1/Garrison | Entered Access 23324 | -1/Access | First assault squad dispatched 23355 | -1/Access | Garrison activated, responded to threat 23402 | -1/Access | Lost 3 parts (2n1u) 23523 | -1/Access | Lost 3 parts (2p1n) 23588 | -1/Access | System corruption reached 10% 23668 | -1/Access | Found Prototype Device 23669 | -1/Access | Identified Thermal Barrier 23672 | -1/Access | Found Thermal Barrier 23854 | -1/Access | Discovered new exit (range 4) 23858 | *** | Escaped! Last Messages --------------- 23824_ Dismantling Sealed Barrier with Imp. Plasma Cutter. 23836_ 4% IRUD M NKES=GW1NLX3RVAW 0SSQA 23836_ Dismantling Sealed Barrier with Imp. Plasma Cutter. 23836_ Sealed Barrier dismantled. 23841_ Slug penetrates C-30 ARC. 23841_ Slug penetrates Wall. 23842_ C-30 ARC bursts open, deploying its payload. 23842_ G-73 Enforcer unfolds itself. 23842_ L-61 Swordsman unfolds itself. 23842_ G-73 Enforcer unfolds itself. 23842_ M-36 Artificer unfolds itself. 23844_ Dismantling Main Access Shell with Imp. Plasma Cutter. 23849_ Slug penetrates G-73 Enforcer. 23849_ Slug penetrates Wall. 23850_ Dismantling Main Access Shell with Imp. Plasma Cutter. 23851_ Warden 10c destroyed. 23852_ Dismantling Main Access Shell with Imp. Plasma Cutter. 23854_ Main Access Shell dismantled. 23854_ EXIT=FOUND [Achievement: One Last FU] Map ----- +----------------------------------------------------+ | ?????????????????????????????????????????????????? | | ?????????????????????????????????????????????????? | | ?????????????????????????????????????????????????? | | ?????????????????????????????????????????????????? | | ?????????????????????????????????????????????????? | | ?????????????????????????????????????????????????? | | ?????????????????????????????????????????????????? | | ?????????????????????????????????????????????????? | | ?????????????????????????????????????????????????? | | ?????????????????????????????????????????????????? | | ?????????????????????????????????????????????????? | | ?????????????????????????????????????????????????? | | ?????????????????????????????????????????????????? | | ?????????????????????????????????????????????????? | | ?????????????????????????????????????????????????? | | ?????????????????????????????????????????????????? | | ?????????????????????????????????????????????????? | | ?????????????????????????????????????????????????? | | ?????????????????????????????????????????????????? | | ?????????????????????????????????????????????????? | | ???????????????????????????"""#??????????????????? | | ??????????????????????????? #??????????????????? | | ??????????????????????"""""" #??????????????????? | | ??????????????????????" " #??????????????????? | | ??????????????????????" "" #??????????????????? | | ??????????????????????" "@ #??????????????????? | | ???????????????????#??" #??????????????????? | | ???????????????????# """"""l #??????????????????? | | ???????????????????# g #??????????????????? | | ???????????????????# #??????????????????? | | ???????????????????""""""" = ""??????????????????? | | ???????????????????#"" =%g #??????????????????? | | ???????????????????#"" [ #??????????????????? | | ???????????????????#"" g #??????????????????? | | ???????????????????#T #??????????????????? | | ???????????????????#"" #??????????????????? | | ???????????????????#"" #??????????????????? | | ???????????????????#"" ##########?????????? | | ?????????????? #?????????? | | ????????????? "% #?????????? | | ??????????????####################### #?????????? | | ??????????????????????????########### #?????????? | | ??????????????????????????# * # #?????????? | | ??????????????????????????# / #?????????? | | ??????????????????????????# # #?????????? | | ?????????????????Y????????# " # #?????????? | | ??????????????????????????# """ # #?????????? | | ??????????????????????????# """# #???#####?? | | ??????????????????????????# " # #??? #?? | | ??????????????????????????# # #???* ??? | +----------------------------------------------------+ Best States ------------- Heat Dissipation 114 Coolant Potential 180 Energy Generation 65 Energy Capacity 840 Matter Stores 300 Matter Capacity 450 Sight Range 23 Robot Scan Range 20 Terrain Scan Range 30 Terrain Scan Density 210 Jamming Range 16 Power Amplification 30 Additional Mass Support 12 Base Temperature (-) 200 Corruption Block 20 Armor Coverage 1200 Resistance: TH 50 Resistance: EM 25 Utility Shielding 33 Point Defense Rating 240 Weapon Cycling 25 Phase Shifting 15 Evasion (%) 85 Targeting Accuracy 20 Target Analysis 9 Core Analysis 8 Armor Integrity Analysis 40 Recoil Reduction 7 Matter Filtering 30 Particle Charging 25 Kinecelleration 40 Offensive Hacking 50 Relay Coupler Types 5 Relay Coupler Value 104 Item Schematics ----------------- Hrd. Light Armor Plating | -9/Materials | Scanalyzed Lgt. Deuterium Engine | -8/Materials | Extracted Imp. Terrain Scanner | -8/Materials | Extracted Adv. Visual Processing Unit | -8/Recycling | Hacked Robot Schematics ------------------ None Fabricated ------------ Nothing Repaired ---------- Lgt. Treads | 25% | -9/Materials Imp. Medium Laser | 26% | -9/Materials Imp. Ion Engine | 38% | -9/Materials Deuterium Engine | 6% | -8/Materials Adv. Beam Rifle | 59% | -8/Storage Alien Tech Used ----------------- None Achievements -------------- One Last FU Challenges ------------ None Game ------ Seed MicrodissipatorPointyRipper Manual? 0 Play Time 05:36:07 Cumulative 114.1 hours Start 2025.06.17 @ 05:16:22 End 2025.06.18 @ 12:09:40 Sessions 3 Manual Loads 0 Difficulty Rogue Special Mode None Game No. 137 Rogue 122 Adventurer 15 Explorer 0 Win Type 0 Total 3 Types 2/0/1/0/0/0/0/0/0/0 Lore% 34 Gallery% 59 Achievement% 53 Wizard Run 0 Options --------- Layout 0 ASCII 0 Keyboard 0 Movement Mouse Keybinds 0 Fullscreen 2 Font 36/Smallcaps Map View 76x50 Zoom Use 0% Tactical HUD 1 Map Filters NONE Filters NONE Steam 1 RUN: 6d2c9b0b-aa35-4acf-a8c0-02a13fcb1bb6